bitfinex/quotes_SOLUSD_20240808
["timestamp","ask_amount","ask_price","bid_price","bid_amount"]
[1723128403463,0.8111004,160.09,159.96,42.79954225]
[1723128403671,0.8111004,160.09,159.96,1.24954225]
[1723128403954,0.34,160.08,159.96,1.24954225]
[1723128406161,0.34,160.08,159.97,1.24971987]
[1723128406534,0.34,160.08,159.96,1.24993767]
[1723128406976,0.34,160.08,159.95,6.0825]
[1723128407276,6.7713,160.08,159.95,6.0825]
[1723128407434,6.2477,160.06,159.9,6.6088]
[1723128407635,48.3213,160.08,159.84,58.078]
[1723128407636,21.3957,160.04,159.86,6.6088]
[1723128407861,6.5891,160.03,159.86,6.6088]
[1723128408065,0.34,160.03,159.86,6.6088]
[1723128408467,30.0,159.96,159.87,1.25073997]
[1723128408642,0.34,159.95,159.87,1.25073997]
[1723128409341,0.34,159.95,159.86,6.6088]
[1723128409540,30.0,159.94,159.86,6.6088]
[1723128409747,0.34,159.93,159.86,6.6088]
[1723128410149,30.0,159.94,159.86,6.6088]
[1723128410371,30.0,159.94,159.87,1.25060144]
[1723128410544,30.0,159.92,159.87,1.25060144]
[1723128410945,30.0,159.92,159.88,41.55]
[1723128411258,10.8464,159.92,159.89,1.25038844]
[1723128411464,15.147,160.04,159.88,42.80028055]
[1723128412279,15.147,160.04,159.89,20.0]
[1723128412445,15.147,160.04,159.89,1.25006296]
[1723128412639,15.147,160.04,159.9,1.25006296]
[1723128413243,15.147,160.04,159.88,41.55]
[1723128413488,15.147,160.04,159.89,1.25037539]
[1723128413650,15.147,160.04,159.88,41.55]
[1723128413971,15.147,160.04,159.89,1.2504144]
[1723128414161,0.34,160.03,159.89,1.2504144]
[1723128414485,6.51089601,160.02,159.89,1.2504144]
[1723128414645,6.51089601,160.02,159.92,41.55]
[1723128414854,2.99763906,160.08,159.93,7.39786455]
[1723128415070,6.51004472,160.04,159.93,7.39786455]
[1723128415372,20.27675659,160.09,159.93,7.39802636]
[1723128415558,6.51042511,160.03,159.93,6.1481]
[1723128415757,6.51042511,160.03,159.93,7.39799996]
[1723128415983,20.27675659,160.09,159.93,7.39799996]
[1723128416183,6.50997769,160.05,159.93,7.39799996]
[1723128416368,20.27675659,160.09,159.93,7.39799996]
[1723128416552,17.3386004,160.09,159.93,6.1481]
[1723128416754,6.50992214,160.04,159.94,1.24971378]
[1723128416955,0.8111004,160.09,159.96,41.55]
[1723128417160,0.8111004,160.09,159.97,21.2493365]
[1723128417876,0.8111004,160.09,159.97,1.2493365]
[1723128418363,0.8111004,160.09,159.97,21.2493365]
[1723128418845,0.8111004,160.09,159.96,41.55]
[1723128419046,0.8111004,160.09,159.94,1.24959054]
[1723128419247,0.34,160.08,159.94,1.24959054]
[1723128419473,0.34,160.08,159.93,7.39785569]
[1723128419674,0.34,160.08,159.93,7.3980044]
[1723128419982,0.34,160.08,159.93,6.1481]
[1723128420177,0.34,160.08,159.93,7.39790427]
[1723128420351,0.34,160.08,159.93,7.39808275]
[1723128420681,0.34,160.08,159.93,7.39798409]
[1723128420856,15.3709,160.07,159.93,6.1481]
[1723128421054,0.34,160.06,159.85,6.0655]
[1723128421260,0.34,160.06,159.88,1.2502848]
[1723128421976,15.3709,160.07,159.89,6.4517]
[1723128422171,15.3709,160.07,159.9,21.24979678]
[1723128423053,15.3709,160.07,159.92,41.55]
[1723128423249,15.3709,160.07,159.93,21.24975715]
[1723128423666,0.8111004,160.09,159.96,41.55]
[1723128423946,0.8111004,160.09,159.97,1.2494268]
[1723128424169,0.8111004,160.09,159.97,21.2494268]
[1723128424777,0.8111004,160.09,159.97,1.2494268]
[1723128424960,0.8111004,160.09,159.97,21.2494268]
[1723128425464,0.8111004,160.09,159.94,6.3057]
[1723128425660,15.2778,160.08,159.95,1.24979808]
[1723128425861,15.2778,160.08,159.96,1.24974885]
[1723128426571,0.8111004,160.09,159.96,1.24974885]
[1723128427669,6.50841482,160.08,159.96,1.24974885]
[1723128428256,0.17,160.07,159.96,1.24974885]
[1723128428569,0.34,160.07,159.95,1.24972641]
[1723128429158,0.34,160.07,159.96,1.24976627]
[1723128430478,0.34,160.07,159.94,6.3057]
[1723128430957,0.34,160.07,159.95,1.24987925]
[1723128431261,0.34,160.07,159.96,1.24976862]
[1723128431453,0.17,160.07,159.96,1.24976862]
[1723128432078,6.50841482,160.08,159.96,1.24976862]
[1723128433788,7.3195144,160.09,160.0,41.55]
[1723128434084,0.8111004,160.09,160.01,1.24926148]
[1723128434381,0.8111004,160.09,160.02,1.24904418]
[1723128434771,0.8111004,160.09,160.01,1.24917254]
[1723128435081,0.8111004,160.09,160.0,41.55]
[1723128435470,0.8111004,160.09,160.01,1.24931649]
[1723128435657,0.8111004,160.09,160.02,1.24931551]
[1723128436876,0.8111004,160.09,160.01,1.24919481]
[1723128437268,0.8111004,160.09,160.01,21.24919481]
[1723128437459,0.8111004,160.09,160.0,41.55]
[1723128437781,0.8111004,160.09,160.0,42.79918193]
[1723128438561,0.8111004,160.09,160.0,41.55]
[1723128438761,0.8111004,160.09,159.96,41.55]
[1723128439064,0.34,160.08,159.96,1.24959213]
[1723128439281,7.2087004,160.09,159.96,1.24959213]
[1723128439663,0.34,160.08,159.96,1.24959213]
[1723128440162,0.17,160.08,159.96,1.24959213]
[1723128440364,0.34,160.08,159.94,6.3057]
[1723128440866,0.34,160.08,159.92,41.55]
[1723128440867,16.3326,160.07,159.92,41.55]
[1723128441184,0.34,160.06,159.93,1.24984328]
[1723128442260,0.17,160.06,159.93,21.24984328]
[1723128442866,0.34,160.06,159.93,21.24984328]
[1723128443385,0.17,160.06,159.93,21.24984328]
[1723128443757,0.34,160.06,159.93,21.24984328]
[1723128444164,16.3326,160.07,159.93,21.24984328]
[1723128444391,6.50910141,160.06,159.94,0.17]
[1723128444564,16.3326,160.07,160.0,41.55]
[1723128444772,16.3326,160.07,160.01,1.24934209]
[1723128444988,16.3326,160.07,160.0,41.55]
[1723128445166,16.3326,160.07,159.92,41.55]
[1723128445366,30.0,160.02,159.93,1.24984513]
[1723128446091,30.0,160.02,159.92,41.55]
[1723128446277,30.0,160.02,159.93,1.24982465]
[1723128446480,16.3326,160.07,159.93,1.24982465]
[1723128446690,0.34,160.06,159.93,1.24982465]
[1723128447600,0.17,160.06,159.93,1.24982465]
[1723128447787,16.3326,160.07,159.94,0.17]
[1723128448094,16.3326,160.07,159.95,1.24938954]
[1723128448290,16.3326,160.07,159.96,1.41932735]
[1723128448593,16.3326,160.07,159.96,1.24932735]
[1723128448898,16.3326,160.07,159.94,1.24950887]
[1723128449077,6.0107,160.06,159.92,41.55]
[1723128449277,6.0107,160.06,159.95,1.2498414]
[1723128449505,6.0107,160.06,159.92,41.55]
[1723128449506,6.0107,160.06,159.96,1.24966646]
[1723128449997,0.34,160.05,159.92,41.55]
[1723128450297,0.34,160.05,159.92,1.24988712]
[1723128450682,0.34,160.05,159.93,1.24995174]
[1723128451043,6.0107,160.06,159.93,1.24995174]
[1723128451206,6.0107,160.06,159.96,41.55]
[1723128451501,6.0107,160.06,159.97,1.24948188]
[1723128451871,6.0107,160.06,159.96,42.7995131]
[1723128452067,6.0107,160.06,159.94,1.2496702]
[1723128452803,16.3326,160.07,159.94,1.2496702]
[1723128453571,16.3326,160.07,159.95,0.17]
[1723128453775,2.91035602,160.14,160.06,41.55]
[1723128453973,16.3326,160.18,160.12,41.55]
[1723128454274,10.0,160.21,160.12,41.55]
[1723128454683,10.0,160.21,160.13,0.17]
[1723128454907,10.0,160.21,160.12,41.55]
[1723128455133,10.0,160.21,160.13,20.17]
[1723128455436,10.0,160.21,160.16,41.55]
[1723128455610,10.0,160.21,160.12,41.55]
[1723128455803,10.0,160.21,160.13,20.17]
[1723128456017,16.2635,160.21,160.09,6.3983]
[1723128456211,10.0,160.21,160.1,1.2484569]
[1723128456524,10.0,160.21,160.1,21.4184569]
[1723128457306,10.0,160.21,160.17,41.55]
[1723128457528,10.0,160.21,160.18,1.24797036]
[1723128458219,10.0,160.21,160.18,21.24797036]
[1723128458416,10.0,160.21,160.19,1.8280291]
[1723128459030,10.0,160.21,160.2,7.72741016]
[1723128459031,3.3334,160.21,160.2,7.72741016]
[1723128459203,30.65900312,160.24,160.2,69.27741016]
[1723128459405,30.65900312,160.24,160.2,62.13555626]
[1723128459622,30.65900312,160.24,160.21,33.56647944]
[1723128459829,30.65900312,160.24,160.22,1.24759946]
[1723128460012,29.41126277,160.24,160.23,7.58216568]
[1723128460210,29.41126277,160.24,160.14,6.5246]
[1723128460426,29.41126277,160.24,160.19,0.55650799]
[1723128460626,29.41126277,160.24,160.19,16.47211001]
[1723128460832,29.41126277,160.24,160.2,1.82791499]
[1723128461043,29.41126277,160.24,160.21,1.2477272]
[1723128461213,29.41126277,160.24,160.22,1.82768681]
[1723128463328,29.41126277,160.24,160.23,1.24768757]
[1723128463842,29.41126277,160.24,160.23,7.33070568]
[1723128464134,29.41126277,160.24,160.23,7.16070568]
[1723128464342,29.41126277,160.24,160.23,19.16880833]
[1723128465108,29.41126277,160.24,160.23,28.23240945]
[1723128465549,29.41126277,160.24,160.23,29.47988249]
[1723128465846,6.50744167,160.36,160.23,29.47988249]
[1723128465847,6.50744167,160.36,160.24,21.87800945]
[1723128466012,6.50744167,160.36,160.28,41.55]
[1723128466213,0.8111004,160.41,160.33,41.55]
[1723128466420,0.8111004,160.41,160.34,75.14687549]
[1723128466649,0.8111004,160.41,160.37,41.55]
[1723128466833,0.8111004,160.41,160.38,9.97653323]
[1723128467151,6.50768253,160.51,160.38,1.24572629]
[1723128467313,1.0,160.71,160.38,1.24572629]
[1723128467314,28.3563,160.6,160.4,41.55]
[1723128467512,22.1296,160.6,160.41,1.24552713]
[1723128467714,22.1296,160.6,160.41,21.24552713]
[1723128468414,22.1296,160.6,160.42,9.4392323]
[1723128468613,22.1296,160.6,160.43,1.41535751]
[1723128468916,22.1296,160.6,160.44,0.17]
[1723128469138,22.1296,160.6,160.45,1.24520227]
[1723128469346,15.7718,160.6,160.48,41.55]
[1723128469549,15.7718,160.6,160.49,30.854295]
[1723128469761,0.8111004,160.72,160.49,30.854295]
[1723128469953,7.6326,160.71,160.52,41.55]
[1723128470260,41.55,160.64,160.32,41.55]
[1723128470555,21.6029,160.63,160.36,41.55]
[1723128470753,21.6029,160.63,160.4,41.55]
[1723128471249,21.6029,160.63,160.44,41.55]
[1723128471555,21.6029,160.63,160.48,41.55]
[1723128471731,21.6029,160.63,160.4,41.55]
[1723128471935,21.6029,160.63,160.46,41.55]
[1723128472161,21.6029,160.63,160.47,1.2446323]
[1723128472334,21.6029,160.63,160.48,0.17]
[1723128472531,21.6029,160.63,160.5,41.55]
[1723128472735,0.3632126,160.64,160.48,0.17]
[1723128472736,0.3632126,160.64,160.54,41.55]
[1723128472951,0.3632126,160.64,160.55,30.30854078]
[1723128473127,0.3632126,160.64,160.55,32.1324709]
[1723128473633,0.3632126,160.64,160.55,21.59385849]
[1723128473835,0.3632126,160.64,160.56,65.0]
[1723128474055,0.3632126,160.64,160.57,10.30875872]
[1723128474353,0.3632126,160.64,160.58,42.79435831]
[1723128474664,0.3632126,160.64,160.59,0.34]
[1723128474958,0.3632126,160.64,160.6,1.2443257]
[1723128475170,0.3632126,160.64,160.61,1.24435931]
[1723128475747,0.3632126,160.64,160.55,21.82393012]
[1723128475936,0.3632126,160.64,160.56,0.17]
[1723128476439,0.3632126,160.64,160.57,9.46138759]
[1723128476647,0.3632126,160.64,160.58,20.17]
[1723128476835,0.3632126,160.64,160.59,0.93019283]
[1723128477043,0.3632126,160.64,160.6,0.17]
[1723128477368,0.3632126,160.64,160.59,0.93019283]
[1723128477657,0.3632126,160.64,160.57,8.15268984]
[1723128477849,0.3632126,160.64,160.58,20.9300494]
[1723128478440,0.3632126,160.64,160.58,0.9300494]
[1723128478975,0.3632126,160.64,160.59,0.34]
[1723128479142,0.3632126,160.64,160.6,0.93029721]
[1723128479343,0.3632126,160.64,160.61,0.93048066]
[1723128479748,0.3632126,160.64,160.57,0.93161551]
[1723128479943,0.3632126,160.64,160.55,43.37393012]
[1723128479944,0.3632126,160.64,160.58,0.93155749]
[1723128480265,6.2274,160.58,160.55,1.82393012]
[1723128480562,6.2274,160.58,160.4,41.55]
[1723128480563,6.1918,160.62,160.46,1.82495314]
[1723128481147,6.2289,160.55,160.41,1.82552198]
[1723128481349,15.2579,160.59,160.41,1.82552198]
[1723128481767,15.909,160.58,160.41,1.82552198]
[1723128481971,15.5716,160.55,160.41,1.82552198]
[1723128482184,15.1298,160.53,160.32,41.55]
[1723128482349,15.5746,160.52,160.32,41.55]
[1723128482671,6.2314,160.48,160.32,41.55]
[1723128482874,6.2331,160.44,160.32,41.55]
[1723128483074,15.1298,160.53,160.3,1.82677468]
[1723128483075,6.2317,160.47,160.3,1.82677468]
[1723128483368,6.2324,160.46,160.3,1.82677468]
[1723128483540,15.5757,160.51,160.3,1.82677468]
[1723128483743,0.34,160.5,160.3,1.82677468]
[1723128484040,1.89803142,160.5,160.3,1.82677468]
[1723128484258,1.89803142,160.5,160.16,45.9538]
[1723128484259,16.2707,160.43,160.24,43.37745869]
[1723128484459,0.34,160.42,160.24,1.82745869]
[1723128484658,15.5875,160.39,160.24,1.82745869]
[1723128484853,16.2707,160.43,160.28,41.55]
[1723128485051,6.2314,160.48,160.29,6.1683672]
[1723128485258,6.1146,160.49,160.32,41.55]
[1723128485574,16.1437,160.48,160.26,41.55]
[1723128485871,6.2343,160.41,160.24,1.82745869]
[1723128486172,15.5801,160.47,160.24,1.82745869]
[1723128486376,21.7286578,160.46,160.24,1.82745869]
[1723128486595,15.5834,160.43,160.24,1.82745869]
[1723128486746,6.2369,160.34,160.24,1.82745869]
[1723128487072,15.587,160.39,160.24,1.82745869]
[1723128487273,6.17,160.37,160.24,1.82745869]
[1723128487586,1.55927442,160.36,160.23,0.4906655]
[1723128487757,6.2419,160.21,160.17,1.82825736]
[1723128488082,22.3033,160.24,160.12,41.55]
[1723128488373,6.17,160.31,160.16,41.55]
[1723128488554,6.17,160.31,160.13,1.82871405]
[1723128488748,0.17,160.3,160.13,1.82871405]
[1723128488943,0.34,160.3,160.13,1.82871405]
[1723128489253,6.2405,160.25,160.07,43.37939952]
[1723128489459,15.9359,160.3,160.07,43.37939952]
[1723128489665,6.2415,160.22,160.07,43.37939952]
[1723128489974,6.2399,160.26,160.11,41.55]
[1723128490148,6.17,160.31,160.11,41.55]
[1723128490358,6.17,160.31,160.15,41.55]
[1723128490851,16.1333,160.33,160.19,41.55]
[1723128491161,6.6309,160.38,160.23,41.55]
[1723128491373,6.6309,160.38,160.24,20.0]
[1723128491866,6.6309,160.38,160.25,0.17]
[1723128492169,6.2341,160.41,160.25,0.34]
[1723128492362,16.32,160.42,160.27,41.55]
[1723128492563,16.32,160.42,160.31,41.55]
[1723128492754,6.6309,160.45,160.32,20.34]
[1723128493255,6.6309,160.45,160.32,20.0]
[1723128493453,6.51608494,160.49,160.39,41.55]
[1723128493655,33.1595,160.6,160.39,41.55]
[1723128493866,15.5684,160.59,160.4,20.34]
[1723128494073,22.08089262,160.59,160.4,20.34]
[1723128494271,1.55703252,160.58,160.4,20.34]
[1723128494560,6.2311,160.49,160.39,20.0]
[1723128494762,15.5711,160.56,160.39,20.0]
[1723128495565,15.5739,160.53,160.39,20.0]
[1723128495765,31.146,160.54,160.39,20.0]
[1723128496050,31.51879731,160.57,160.39,20.0]
[1723128496273,6.2317,160.47,160.39,20.0]
[1723128496454,6.2308,160.5,160.39,20.0]
[1723128496657,15.5741,160.53,160.39,20.0]
[1723128496858,6.2337,160.42,160.39,20.0]
[1723128497059,57.1269,160.5,160.39,20.0]
[1723128497254,6.234,160.41,160.39,20.0]
[1723128497575,6.2336,160.42,160.39,20.0]
[1723128497776,41.55,160.42,160.25,1.16174267]
[1723128497978,41.55,160.37,160.25,1.16174267]
[1723128498180,6.2367,160.34,160.11,41.55]
[1723128498381,1.55911015,160.45,160.19,41.55]
[1723128498560,22.2871,160.46,160.19,30.4895557]
[1723128498754,41.55,160.44,160.19,36.57215526]
[1723128498971,41.55,160.44,160.19,6.08259956]
[1723128499481,6.2344,160.4,160.2,0.17]
[1723128499659,15.5818,160.45,160.2,6.42259956]
[1723128499857,15.5818,160.45,160.21,20.0]
[1723128500058,41.55,160.4,160.2,6.08259956]
[1723128500283,37.8677,160.46,160.15,41.55]
[1723128500459,41.55,160.44,160.16,6.08259956]
[1723128500777,6.2387,160.29,160.15,1.06014156]
[1723128500958,41.55,160.32,160.15,1.06014156]
[1723128501157,41.55,160.32,160.09,6.0033]
[1723128501158,41.55,160.28,160.09,7.06383889]
[1723128501465,41.55,160.36,160.13,6.52323976]
[1723128501669,6.2375,160.32,160.1,6.08259956]
[1723128501967,41.55,160.36,160.13,6.52210431]
[1723128502165,1.55946163,160.42,160.1,6.08259956]
[1723128502377,41.55,160.38,160.12,41.55]
[1723128502679,41.55,160.38,160.13,32.77452062]
[1723128502884,6.2363,160.36,160.13,33.83479459]
[1723128503073,41.55,160.38,160.14,19.84020777]
[1723128503268,41.55,160.42,160.16,60.33]
[1723128503472,41.55,160.42,160.18,18.78]
[1723128503473,6.2344,160.4,160.18,18.78]
[1723128503665,41.55,160.42,160.19,21.39987684]
[1723128503879,58.69305139,160.42,160.2,1.22981068]
[1723128504070,41.55,160.38,160.2,1.39981068]
[1723128504266,6.2369,160.34,160.2,1.39981068]
[1723128504485,6.2371,160.33,160.2,1.22981068]
[1723128504691,6.52039825,160.41,160.2,1.22981068]
[1723128504996,41.55,160.4,160.2,1.22981068]
[1723128505561,41.55,160.36,160.2,0.17]
[1723128506162,41.55,160.36,160.15,18.78]
[1723128506362,41.55,160.32,160.13,6.52192106]
[1723128507283,6.2352,160.38,160.13,25.30192106]
[1723128507593,41.55,160.4,160.13,25.30192106]
[1723128507906,47.7844,160.4,160.17,18.78]
[1723128508062,6.2355,160.37,160.18,20.34]
[1723128508259,41.55,160.4,160.18,21.39994301]
[1723128508485,6.2355,160.37,160.19,1.05987684]
[1723128508780,41.55,160.36,160.19,1.05987684]
[1723128509268,41.55,160.32,160.19,1.05987684]
[1723128509869,6.2383,160.3,160.19,1.05987684]
[1723128510075,47.7878,160.32,160.19,1.05987684]
[1723128510387,41.55,160.32,160.19,1.05987684]
[1723128511092,47.7878,160.32,160.14,1.06020777]
[1723128511392,41.55,160.32,160.15,0.17]
[1723128511688,41.55,160.32,160.16,1.06007537]
[1723128512088,15.5953,160.31,160.16,1.06007537]
[1723128512292,6.2402,160.25,160.16,1.06007537]
[1723128512514,41.55,160.28,160.16,1.06007537]
[1723128512663,6.2383,160.3,160.16,1.06007537]
[1723128512870,41.55,160.36,160.16,1.06007537]
[1723128513591,41.55,160.35,160.16,1.06007537]
[1723128513796,41.55,160.35,160.17,0.34]
[1723128514015,6.2355,160.37,160.17,0.34]
[1723128514171,21.9127,160.39,160.17,0.34]
[1723128514666,6.52159545,160.38,160.17,0.17]
[1723128514905,6.2368,160.34,160.17,0.17]
[1723128515088,6.2372,160.33,160.17,0.17]
[1723128515293,41.55,160.36,160.17,0.17]
[1723128515480,6.2364,160.35,160.17,0.17]
[1723128515687,6.2366,160.35,160.17,0.17]
[1723128515867,41.55,160.36,160.17,0.17]
[1723128515868,47.786,160.36,160.17,0.17]
[1723128516073,47.786,160.36,160.16,1.06007537]
[1723128516074,41.55,160.36,160.16,1.06007537]
[1723128516398,6.2363,160.35,160.16,1.06007537]
[1723128516702,41.55,160.36,160.16,1.06007537]
[1723128516875,6.2374,160.33,160.16,1.06007537]
[1723128517397,6.2366,160.35,160.16,1.06007537]
[1723128517584,41.55,160.36,160.17,0.17]
[1723128517782,6.2367,160.35,160.17,0.17]
[1723128517994,41.55,160.36,160.17,0.17]
[1723128518173,6.2372,160.33,160.17,0.17]
[1723128518369,6.2367,160.34,160.17,0.34]
[1723128518725,41.55,160.36,160.16,1.06007537]
[1723128519037,6.2367,160.34,160.11,1.02725202]
[1723128519324,41.55,160.36,160.11,1.02725202]
[1723128519527,0.34,160.35,160.11,1.02725202]
[1723128519890,41.55,160.32,160.11,1.02725202]
[1723128520089,6.2371,160.34,160.11,1.02725202]
[1723128520332,6.2375,160.32,160.11,1.02725202]
[1723128520490,0.34,160.35,160.11,1.02725202]
[1723128520827,6.2369,160.34,160.11,1.02725202]
[1723128520999,0.34,160.35,160.11,1.02725202]
[1723128521197,41.55,160.36,160.11,1.02725202]
[1723128521512,6.3249,160.39,160.13,41.55]
[1723128521718,17.14710827,160.38,160.14,20.34]
[1723128522015,6.3249,160.39,160.14,20.34]
[1723128522203,6.2371,160.33,160.14,0.34]
[1723128522435,6.2366,160.35,160.14,0.34]
[1723128522612,6.3249,160.39,160.15,0.56521601]
[1723128522795,20.0,160.38,160.16,0.34]
[1723128522989,6.236,160.36,160.17,0.39410961]
[1723128523214,6.2352,160.38,160.18,0.34]
[1723128523396,6.2369,160.34,160.19,0.36001466]
[1723128523598,41.55,160.36,160.19,0.36001466]
[1723128523798,6.3249,160.39,160.19,0.36001466]
[1723128524296,6.2372,160.33,160.19,0.36001466]
[1723128524498,6.2379,160.31,160.19,0.36001466]
[1723128525114,6.4084,160.3,160.19,0.36001466]
[1723128525439,1.55976955,160.29,160.11,0.35475372]
[1723128525639,48.0813,160.25,160.11,0.35475372]
[1723128525919,0.17,160.28,160.11,0.35475372]
[1723128526131,0.34,160.28,160.05,6.52593831]
[1723128526525,0.34,160.28,160.08,6.525938]
[1723128526729,80.72214203,160.32,160.08,6.525938]
[1723128526730,6.52414203,160.32,160.13,41.55]
[1723128526911,6.7467,160.41,160.13,41.55]
[1723128527110,6.52176383,160.39,160.14,6.4252]
[1723128527408,6.2356,160.37,160.15,0.17]
[1723128527628,6.2351,160.38,160.15,0.34]
[1723128527829,6.2355,160.38,160.15,0.34]
[1723128528010,12.75686383,160.39,160.15,20.34]
[1723128528208,6.52176383,160.39,160.15,20.34]
[1723128528509,6.2355,160.37,160.15,20.34]
[1723128529039,6.2354,160.38,160.15,20.34]
[1723128529249,6.2356,160.37,160.15,20.34]
[1723128529411,6.52176383,160.39,160.16,16.63]
[1723128529612,6.52176383,160.39,160.17,20.68772751]
[1723128529912,6.2355,160.37,160.18,0.3477058]
[1723128530130,6.2359,160.36,160.19,0.34]
[1723128530435,6.2363,160.36,160.2,0.3476624]
[1723128530622,6.52176383,160.39,160.2,0.3476624]
[1723128531340,12.75676383,160.39,160.2,0.3476624]
[1723128531642,6.52176383,160.39,160.2,0.3476624]
[1723128532207,41.55,160.36,160.2,0.3476624]
[1723128532425,0.17,160.35,160.2,0.3476624]
[1723128532914,6.4066,160.35,160.2,0.3476624]
[1723128533108,47.7861,160.36,160.2,0.3476624]
[1723128533332,6.2367,160.34,160.2,0.3476624]
[1723128533538,6.2355,160.37,160.2,0.3476624]
[1723128533835,48.07176383,160.39,160.2,0.3476624]
[1723128534036,49.63101279,160.39,160.2,0.3476624]
[1723128534350,6.2384,160.3,160.2,0.3476624]
[1723128534509,6.2382,160.31,160.2,0.3476624]
[1723128534818,6.4075,160.32,160.2,0.3476624]
[1723128535016,0.17,160.31,160.2,0.3476624]
[1723128535217,43.27965952,160.31,160.2,0.3476624]
[1723128535424,0.17,160.3,160.2,0.3476624]
[1723128536136,6.2394,160.28,160.14,6.4252]
[1723128536315,0.17,160.29,160.14,6.4252]
[1723128536632,0.17,160.29,160.15,0.34777094]
[1723128537035,6.2395,160.27,160.15,0.34777094]
[1723128537236,6.409,160.29,160.15,0.34777094]
[1723128537455,12.76438581,160.28,160.15,0.34777094]
[1723128537626,6.52528581,160.28,160.15,0.34777094]
[1723128537939,6.2384,160.3,160.2,6.242]
[1723128538134,6.2384,160.3,160.2,21.8474]
[1723128538433,6.5245643,160.3,160.2,15.6054]
[1723128538624,9.35141973,160.3,160.2,15.6054]
[1723128539018,6.5245643,160.3,160.16,16.2996]
[1723128539221,2.94297638,160.35,160.17,20.34]
[1723128539433,6.52263294,160.36,160.17,20.34]
[1723128539622,6.2366,160.35,160.17,20.34]
[1723128539819,6.52263294,160.36,160.17,20.34]
[1723128540025,6.2371,160.33,160.17,20.17]
[1723128540333,1.55946357,160.35,160.17,20.17]
[1723128540539,49.63214208,160.36,160.16,16.2996]
[1723128540735,1.72976476,160.35,160.16,16.2996]
[1723128540944,6.2395,160.27,160.16,16.2996]
[1723128541318,1.56001983,160.26,160.14,6.4252]
[1723128541521,0.17,160.25,160.16,6.2437]
[1723128541971,6.2413,160.23,160.1,16.9489]
[1723128542123,0.17,160.22,160.1,16.9489]
[1723128542319,1.5606854,160.22,160.1,16.9489]
[1723128542558,6.2429,160.18,160.09,6.1957]
[1723128542727,6.4126,160.19,160.09,12.4421]
[1723128542927,0.34,160.21,160.09,6.1957]
[1723128542928,0.17,160.18,160.09,6.1957]
[1723128543235,30.0,160.18,160.09,6.1957]
[1723128543425,30.0,160.18,160.11,6.8497926]
[1723128543752,30.0,160.18,160.11,0.6042926]
[1723128544055,0.34,160.21,160.11,0.6042926]
[1723128544548,6.243,160.18,160.11,0.6042926]
[1723128544745,6.5835,160.17,160.11,0.6042926]
[1723128544973,6.4137,160.16,160.11,0.6042926]
[1723128545332,0.17,160.15,160.05,0.34798823]
[1723128545648,6.2441,160.15,160.05,0.34798823]
[1723128545842,6.4145,160.14,160.05,0.34798823]
[1723128546030,0.17,160.13,160.05,0.34798823]
[1723128546230,0.17,160.13,160.04,6.2482]
[1723128546539,0.34,160.14,160.05,6.248]
[1723128546729,6.5849,160.14,159.99,6.7146]
[1723128546930,6.5849,160.14,160.04,6.2483]
[1723128547126,1.56143337,160.13,159.99,6.7146]
[1723128547355,0.34,160.12,159.99,6.7146]
[1723128547536,30.17,160.12,159.98,0.34814049]
[1723128547734,30.0,160.12,159.98,0.34814049]
[1723128547942,2.80901171,160.16,160.06,6.2474]
[1723128548246,41.55,160.19,160.03,6.2486]
[1723128548546,6.2449,160.14,160.03,6.2487]
[1723128548849,6.245,160.13,160.03,6.2487]
[1723128549044,6.2445,160.14,160.03,6.2487]
[1723128549433,0.17,160.13,159.98,0.34814049]